bitfinex-derivatives/quotes_BTCF0:USTF0_20251210
["timestamp","ask_amount","ask_price","bid_price","bid_amount"]
[1765378158844,0.0108841,91879.0,91878.0,0.29575]
[1765378159045,0.50864,91879.0,91878.0,0.29575]
[1765378160146,0.0108839,91881.0,91880.0,0.29575]
[1765378160348,0.5195239,91881.0,91880.0,0.29575]
[1765378160550,0.5209634,91885.0,91884.0,0.29575]
[1765378160857,1.1694334,91885.0,91884.0,0.29575]
[1765378161057,0.2999937,91882.0,91881.0,0.29575]
[1765378161854,0.2999937,91882.0,91881.0,0.14811]
[1765378162159,0.86944,91885.0,91884.0,0.29575]
[1765378162456,0.299994,91879.0,91878.0,0.3608]
[1765378162753,0.2999946,91874.0,91873.0,8.092e-05]
[1765378162944,1.1694746,91874.0,91873.0,8.092e-05]
[1765378163149,0.8086746,91874.0,91873.0,8.092e-05]
[1765378163653,0.5195643,91878.0,91873.0,0.36088092]
[1765378163855,0.50868,91878.0,91877.0,0.29575]
[1765378164049,0.3716838,91882.0,91873.0,0.36088092]
[1765378164050,0.3716838,91882.0,91881.0,0.29575]
[1765378164250,0.36096325,91893.0,91892.0,0.29575]
[1765378164456,0.00016325,91893.0,91892.0,0.29575]
[1765378165254,0.01104565,91893.0,91892.0,0.29575]
[1765378165860,0.00016325,91893.0,91892.0,0.29575]
[1765378166165,0.00216325,91893.0,91892.0,0.29575]
[1765378166551,0.01304565,91893.0,91892.0,0.29575]
[1765378166752,0.00216325,91893.0,91892.0,0.29575]
[1765378166954,0.00516325,91893.0,91892.0,0.29575]
[1765378167256,0.15444325,91893.0,91892.0,0.29575]
[1765378167455,0.15344325,91893.0,91892.0,0.32533683]
[1765378167966,0.29327325,91893.0,91892.0,0.32533683]
[1765378168463,0.29227325,91893.0,91892.0,0.32533683]
[1765378169462,0.29227325,91893.0,91892.0,0.02958683]
[1765378170362,0.29227325,91893.0,91892.0,0.17805683]
[1765378170557,0.29227325,91893.0,91892.0,0.02958683]
[1765378173257,0.3066545,91875.0,91874.0,0.68594542]
[1765378173564,0.3066545,91875.0,91874.0,0.71603849]
[1765378174152,0.3066545,91875.0,91874.0,0.67696307]
[1765378174452,0.1580445,91875.0,91874.0,0.67896307]
[1765378174867,0.3066545,91875.0,91874.0,0.67996307]
[1765378175259,0.010883,91888.0,91887.0,0.28607]
[1765378175457,0.010883,91888.0,91887.0,0.31616307]
[1765378176068,0.50864,91890.0,91889.0,0.28607]
[1765378176261,0.50864,91890.0,91889.0,0.31616307]
[1765378176660,0.50864,91890.0,91889.0,0.35522791]
[1765378176862,0.50864,91890.0,91889.0,0.31616307]
[1765378177260,0.3066526,91892.0,91891.0,0.14847]
[1765378177470,0.3066526,91892.0,91891.0,0.31616307]
[1765378177658,0.0108822,91895.0,91892.0,0.2969525]
[1765378177859,0.3608,91909.0,91892.0,0.32704557]
[1765378178167,0.0108813,91904.0,91903.0,0.28607]
[1765378178457,0.5195207,91908.0,91906.0,0.0108807]
[1765378178662,0.5195207,91908.0,91907.0,0.31616307]
[1765378179051,0.8152907,91908.0,91907.0,0.31616307]
[1765378180865,0.50864,91908.0,91907.0,0.32704377]
[1765378181056,0.00016325,91917.0,91914.0,0.2969499]
[1765378181057,0.0108798,91916.0,91914.0,0.2969499]
[1765378181258,0.0108798,91916.0,91914.0,0.32704297]
[1765378181659,0.00016325,91917.0,91914.0,0.32704297]
[1765378181859,0.0108797,91916.0,91914.0,0.32704297]
[1765378182078,0.00016325,91917.0,91914.0,0.32704297]
[1765378182369,0.01104285,91917.0,91914.0,0.32704297]
[1765378182561,0.01104285,91917.0,91914.0,0.31616307]
[1765378182765,0.01104285,91917.0,91914.0,0.03009307]
[1765378182766,0.29685797,91915.0,91914.0,0.03009307]
[1765378182958,0.00108797,91915.0,91914.0,0.31616307]
[1765378183763,0.00208797,91915.0,91914.0,0.31616307]
[1765378184071,0.14924797,91915.0,91914.0,0.31616307]
[1765378184860,0.00508797,91915.0,91914.0,0.31616307]
[1765378185468,0.00408797,91915.0,91914.0,0.31616307]
[1765378187269,0.29985797,91915.0,91914.0,0.03009307]
[1765378187469,0.3066516,91900.0,91899.0,0.3608]
[1765378187672,0.3066516,91900.0,91899.0,0.0300477]
[1765378188667,0.3066516,91900.0,91899.0,0.0310477]
[1765378189663,0.3066516,91900.0,91899.0,0.3289994]
[1765378189664,0.0108816,91900.0,91899.0,0.3289994]
[1765378189871,0.0108809,91906.0,91905.0,0.2969509]
[1765378190179,0.0108809,91906.0,91905.0,0.3269986]
[1765378190673,0.50856,91907.0,91906.0,0.28607]
[1765378190867,0.50856,91907.0,91906.0,0.3161177]
[1765378192075,0.51056,91907.0,91906.0,0.3161177]
[1765378193376,0.80633,91907.0,91906.0,0.0300477]
[1765378193882,0.3066517,91899.0,91896.0,0.3608]
[1765378194062,0.3066517,91899.0,91883.0,0.44316]
[1765378194063,0.3066517,91899.0,91898.0,0.0302383]
[1765378195477,0.3076517,91899.0,91898.0,0.0302383]
[1765378195875,0.001,91899.0,91898.0,0.3271901]
[1765378196081,0.001,91899.0,91898.0,0.36625661]
[1765378196280,0.001,91899.0,91898.0,0.3271901]
[1765378197885,0.001,91899.0,91898.0,0.36622495]
[1765378198376,0.001,91899.0,91898.0,0.3271901]
[1765378198685,0.001,91899.0,91898.0,0.3662266]
[1765378198875,0.001,91899.0,91898.0,0.3271901]
[1765378199884,0.001,91899.0,91898.0,0.36622865]
[1765378200083,0.001,91899.0,91898.0,0.3271901]
[1765378200293,0.28133,91899.0,91898.0,0.0302383]
[1765378200481,0.28133,91899.0,91898.0,0.3119183]
[1765378200778,0.28133,91899.0,91898.0,0.1698283]
[1765378201080,0.28133,91899.0,91898.0,0.3119183]
[1765378201278,0.14816,91899.0,91898.0,0.3119183]
[1765378201674,0.28133,91899.0,91898.0,0.0302383]
[1765378201875,0.28133,91899.0,91898.0,0.00016325]
[1765378202076,0.64213,91899.0,91898.0,0.00016325]
[1765378202269,0.64213,91899.0,91898.0,0.28184325]
[1765378202480,1.15065,91899.0,91898.0,0.17129686]
[1765378202778,1.15065,91899.0,91898.0,0.00016325]
[1765378205481,1.15065,91899.0,91898.0,0.03115727]
[1765378205676,1.15065,91899.0,91898.0,0.00016325]
[1765378205988,1.15069,91899.0,91898.0,0.31283737]
[1765378206178,1.01752,91899.0,91898.0,0.31283737]
[1765378206576,1.01752,91899.0,91898.0,0.03115737]
[1765378206978,1.01752,91899.0,91898.0,0.31283737]
[1765378207175,0.001,91899.0,91898.0,0.31283737]
[1765378207680,0.001,91899.0,91898.0,0.37144656]
[1765378207881,0.001,91899.0,91898.0,0.67363737]
[1765378211684,0.26461,91899.0,91898.0,0.03115737]
[1765378213390,0.13292,91899.0,91898.0,0.30834737]
[1765378213681,0.001,91899.0,91898.0,0.30834737]
[1765378216385,0.26461,91899.0,91898.0,0.30834737]
[1765378216587,0.001,91899.0,91898.0,0.30834737]
[1765378218085,0.26461,91899.0,91898.0,0.36700878]
[1765378218391,0.26461,91899.0,91898.0,0.03115737]
[1765378219491,0.26461,91899.0,91898.0,0.30834737]
[1765378219886,0.26461,91899.0,91898.0,0.03115737]
[1765378220092,0.62541,91899.0,91898.0,0.03115737]
[1765378220306,0.62541,91899.0,91898.0,0.06049159]
[1765378220490,0.62541,91899.0,91898.0,0.03115737]
[1765378221494,0.62541,91899.0,91898.0,0.06049159]
[1765378221696,0.62541,91899.0,91898.0,0.30834737]
[1765378221989,0.62541,91899.0,91898.0,0.03115737]
[1765378222194,0.62541,91899.0,91898.0,0.0604906]
[1765378222494,1.13393,91899.0,91898.0,0.0604906]
[1765378222884,1.13393,91899.0,91898.0,0.03115737]
[1765378224987,0.49372,91899.0,91898.0,0.30834737]
[1765378225282,0.87032,91899.0,91898.0,0.34745725]
[1765378225482,0.3618,91899.0,91898.0,0.34745725]
[1765378225883,0.13292,91899.0,91898.0,0.30834737]
[1765378226095,0.001,91899.0,91898.0,0.30834737]
[1765378226597,0.13292,91899.0,91898.0,0.30834737]
[1765378226892,0.26461,91899.0,91898.0,0.30834737]
[1765378228293,0.26461,91899.0,91898.0,0.31922917]
[1765378228294,0.001,91899.0,91898.0,0.31922917]
[1765378228595,0.00108797,91915.0,91914.0,0.2678799]
[1765378228799,0.00108797,91915.0,91914.0,0.29887402]
[1765378229190,0.28031009,91940.0,91931.0,0.13253]
[1765378229397,0.1350569,91939.0,91938.0,0.257]
[1765378229590,0.6435769,91939.0,91938.0,0.28799412]
[1765378229896,0.7676769,91939.0,91938.0,0.28799412]
[1765378230292,0.00108767,91940.0,91939.0,0.2678769]
[1765378230487,0.00108767,91940.0,91939.0,0.29887102]
[1765378231102,0.00016316,91948.0,91947.0,0.257]
[1765378231397,0.00016316,91948.0,91947.0,0.64879412]
[1765378232199,0.00016316,91948.0,91947.0,0.67807543]
[1765378232389,0.00016316,91948.0,91947.0,0.67801795]
[1765378232701,0.00516316,91948.0,91947.0,0.67801795]
[1765378233093,0.00516316,91948.0,91947.0,0.64879412]
[1765378233494,0.25744316,91948.0,91947.0,0.64879412]
[1765378233804,0.25744316,91948.0,91947.0,0.16352412]
[1765378234006,0.25744316,91948.0,91947.0,0.28799412]
[1765378234305,0.25744316,91948.0,91947.0,0.03099412]
[1765378235392,0.25744316,91948.0,91937.0,0.02922383]
[1765378235393,0.24828,91938.0,91937.0,0.02922383]
[1765378235591,0.24828,91936.0,91935.0,0.3608]
[1765378235795,0.58598,91944.0,91935.0,0.64792369]
[1765378235996,0.58598,91944.0,91936.0,0.03012369]
[1765378236205,0.58598,91944.0,91937.0,0.03012369]
[1765378236396,0.12418,91936.0,91935.0,0.6178]
[1765378236596,0.24828,91936.0,91935.0,0.3909196]
[1765378236797,0.24828,91930.0,91929.0,0.36096316]
[1765378236997,0.12718,91936.0,91935.0,0.257]
[1765378237193,0.003,91936.0,91935.0,0.257]
[1765378237810,0.003,91936.0,91935.0,0.28711758]
[1765378238699,0.003,91944.0,91943.0,0.2678765]
[1765378238904,0.003,91944.0,91943.0,0.65879408]
[1765378239497,0.00016316,91948.0,91947.0,0.267876]
[1765378239700,0.00016316,91948.0,91947.0,0.29799358]
[1765378240310,0.24844316,91948.0,91947.0,0.28711758]
[1765378240609,0.12434316,91948.0,91947.0,0.257]
[1765378241008,0.00016316,91948.0,91947.0,0.257]
[1765378241208,0.00416316,91948.0,91947.0,0.28708747]
[1765378241504,0.25244316,91948.0,91947.0,0.257]
[1765378241710,0.24828,91944.0,91943.0,0.6178]
[1765378241908,0.00416316,91948.0,91947.0,0.257]
[1765378242205,0.00416316,91948.0,91947.0,0.28708019]
[1765378242611,0.00816316,91948.0,91947.0,0.28708019]
[1765378242915,0.00416316,91948.0,91947.0,0.28708019]
[1765378243099,0.71760242,91980.0,91956.0,0.02425]
[1765378243100,0.46328,91978.0,91956.0,0.02425]
[1765378243411,0.44602885,91988.0,91978.0,0.0108722]
[1765378243607,0.44602885,91988.0,91968.0,0.07764]
[1765378243608,0.08522885,91988.0,91968.0,0.07764]
[1765378243805,0.27922242,92000.0,91980.0,0.3608]
[1765378243806,0.2198,91993.0,91980.0,0.3608]
[1765378244117,0.24828,91981.0,91980.0,0.3608]
[1765378244302,0.24828,91981.0,91980.0,0.6178]
[1765378245108,0.27922242,91990.0,91980.0,0.6178]
[1765378245311,0.12418,91981.0,91980.0,0.6178]
[1765378245607,0.24828,91978.0,91977.0,0.00016307]
[1765378245812,0.24828,91978.0,91977.0,0.49349307]
[1765378246013,0.24828,91978.0,91977.0,0.61796307]
[1765378246211,0.12418,91978.0,91977.0,0.61796307]
[1765378247012,0.24828,91978.0,91977.0,0.00016307]
[1765378247202,0.24928,91978.0,91977.0,0.00016307]
[1765378247403,0.25228,91978.0,91977.0,0.13269307]
[1765378247700,0.25228,91978.0,91977.0,0.00016307]
[1765378247896,0.61308,91978.0,91977.0,0.00016307]
[1765378248103,0.24828,91961.0,91960.0,0.3608]
[1765378249211,0.24828,91961.0,91960.0,0.6198]
[1765378249416,0.24828,91961.0,91951.0,0.00016307]
[1765378249417,0.2591554,91952.0,91951.0,0.00016307]
[1765378250305,0.6199554,91952.0,91951.0,0.00016307]
[1765378250503,0.6199554,91952.0,91920.0,0.07819]
[1765378250504,0.2591581,91929.0,91928.0,0.13253]
[1765378250903,0.6199581,91929.0,91928.0,0.13253]
[1765378251914,0.6199581,91929.0,91928.0,0.257]
[1765378252509,0.6199581,91929.0,91928.0,0.13253]
[1765378252820,0.6199581,91929.0,91928.0,0.13953]
[1765378253711,0.6199581,91929.0,91928.0,0.264]
[1765378254115,0.6199581,91929.0,91928.0,0.007]
[1765378254421,0.6199581,91929.0,91928.0,0.16962558]
[1765378254625,0.6199581,91929.0,91928.0,0.03709558]
[1765378254919,0.6199581,91929.0,91928.0,0.16962558]
[1765378256018,0.6199581,91929.0,91928.0,0.29409558]
[1765378257221,0.6199581,91929.0,91928.0,0.03709558]
[1765378257710,0.6199581,91929.0,91928.0,0.0059124]
[1765378258625,0.6199581,91929.0,91919.0,0.00016317]
[1765378258626,0.3027392,91920.0,91919.0,0.00016317]
[1765378258819,1.1717792,91920.0,91919.0,0.00016317]
[1765378259810,1.1727792,91920.0,91919.0,0.02616317]
[1765378260412,1.1757792,91920.0,91919.0,0.01016317]
[1765378260617,1.0251392,91920.0,91903.0,0.0291414]
[1765378260819,0.29186,91898.0,91896.0,0.0291414]
[1765378261126,0.3027418,91898.0,91897.0,0.17314036]
[1765378261327,0.3027418,91898.0,91897.0,0.03025036]
[1765378261622,0.29186,91891.0,91890.0,0.00108826]
[1765378261829,0.29186,91891.0,91890.0,0.03132175]
[1765378262124,0.65266,91891.0,91890.0,0.03132175]
[1765378262318,0.65266,91891.0,91890.0,0.00108826]
[1765378262724,0.65266,91891.0,91890.0,0.00208826]
[1765378262921,0.65266,91891.0,91890.0,0.14497826]
[1765378263109,1.16094,91891.0,91890.0,0.29297826]
[1765378263821,1.16094,91891.0,91890.0,0.00208826]
[1765378264013,0.3608,91891.0,91890.0,0.29297826]
[1765378264208,1.16098,91891.0,91890.0,0.00208826]
[1765378264527,1.16298,91891.0,91890.0,0.00208826]
[1765378264921,1.1738626,91891.0,91890.0,0.00208826]
[1765378266010,1.1738626,91891.0,91873.0,0.02922232]
[1765378266212,0.3027446,91874.0,91873.0,8.092e-05]
[1765378266510,0.3027446,91874.0,91873.0,0.18400176]
[1765378266511,0.8111046,91874.0,91873.0,0.18400176]
[1765378266715,0.8111046,91874.0,91873.0,0.15385572]
[1765378266909,0.8111046,91874.0,91873.0,0.29097092]
[1765378267811,0.8111046,91874.0,91873.0,0.29197092]
[1765378268126,0.8111046,91874.0,91873.0,0.14397092]
[1765378268529,0.8111046,91874.0,91873.0,0.14297092]
[1765378268716,0.8121046,91874.0,91873.0,0.14897092]
[1765378269030,0.8131046,91874.0,91873.0,0.16297092]
[1765378269330,0.002,91874.0,91873.0,0.31097092]
[1765378270116,0.27987,91874.0,91873.0,0.31097092]
[1765378270926,0.002,91874.0,91873.0,0.32185572]
[1765378271530,0.3608,91890.0,91882.0,0.1563237]
[1765378271727,0.0108814,91902.0,91901.0,0.0108814]
[1765378271934,0.010881,91905.0,91904.0,0.29132]
[1765378272115,0.1493906,91909.0,91908.0,0.29132]
[1765378272317,0.5101906,91909.0,91908.0,0.29132]
[1765378272620,0.3608,91909.0,91908.0,0.37913]
[1765378272814,0.3608,91909.0,91899.0,0.00016327]
[1765378272815,0.63867,91909.0,91899.0,0.00016327]
[1765378273020,0.2887513,91903.0,91902.0,0.14588]
[1765378273228,0.2887513,91903.0,91902.0,0.03007678]
[1765378273427,0.2887516,91900.0,91899.0,0.00016327]
[1765378273628,0.6495516,91900.0,91899.0,0.03163979]
[1765378273929,0.6495516,91900.0,91899.0,0.17751979]
[1765378274233,0.6495516,91900.0,91899.0,0.00016327]
[1765378274422,0.6495516,91900.0,91899.0,0.03166031]
[1765378274622,0.6525516,91900.0,91899.0,0.03166031]
[1765378275220,0.6525516,91900.0,91899.0,0.00016327]
[1765378275420,0.2887537,91882.0,91881.0,0.1750214]
[1765378275618,0.7971937,91882.0,91881.0,0.17740312]
[1765378276132,0.7971937,91882.0,91881.0,0.03152312]
[1765378276426,0.2887544,91876.0,91873.0,0.14596092]
[1765378276727,0.63867,91874.0,91873.0,0.29140092]
[1765378277033,0.63867,91874.0,91873.0,0.3229507]
[1765378277721,0.63867,91874.0,91873.0,0.35211033]
[1765378278331,0.50031,91874.0,91873.0,0.3309507]
[1765378278719,0.50031,91874.0,91873.0,0.0536307]
[1765378278720,0.64067,91874.0,91873.0,0.0536307]
[1765378281224,1.14915,91874.0,91873.0,0.0536307]
[1765378281837,1.14915,91874.0,91873.0,0.3449507]
[1765378282039,1.14915,91874.0,91873.0,0.1995107]
[1765378282224,1.14915,91874.0,91873.0,0.0536307]
[1765378284336,1.14915,91874.0,91873.0,0.09273372]
[1765378284540,1.14915,91874.0,91873.0,0.38405372]
[1765378285443,1.14915,91874.0,91873.0,0.3449507]
[1765378285845,1.14915,91874.0,91873.0,0.0536307]
[1765378288146,1.14915,91874.0,91873.0,0.11218459]
[1765378288348,1.14915,91874.0,91873.0,0.0536307]
[1765378288548,1.14875,91874.0,91873.0,0.0536307]
[1765378290334,0.28163,91866.0,91865.0,1e-08]
[1765378290538,0.28163,91848.0,91847.0,0.07790089]
[1765378290844,0.2925186,91841.0,91836.0,0.09727861]
[1765378291150,0.2925186,91841.0,91829.0,0.14565995]
[1765378291151,0.2925186,91841.0,91832.0,0.07815593]
[1765378291347,0.6533186,91841.0,91829.0,0.08904583]
[1765378291545,0.64251092,91841.0,91832.0,0.0108896]
[1765378291736,0.64251092,91841.0,91837.0,0.010889]
[1765378292140,0.64251092,91841.0,91830.0,0.0108898]
[1765378292334,0.28163,91824.0,91823.0,0.07815593]
[1765378292554,0.28163,91816.0,91802.0,0.07815593]
[1765378292735,0.28163,91801.0,91800.0,0.01916326]
[1765378292936,0.2925245,91791.0,91790.0,0.00108945]
[1765378293153,0.80112542,91791.0,91790.0,0.00108945]
[1765378293447,0.80112542,91791.0,91761.0,0.07815593]
[1765378293448,0.28163,91751.0,91750.0,0.07815593]
[1765378293651,0.48987,91751.0,91750.0,0.2811894]
[1765378293946,0.64529,91751.0,91750.0,0.2811894]
[1765378294153,0.64529,91751.0,91740.0,0.00109004]
[1765378294154,0.28163,91751.0,91740.0,0.07924597]
[1765378294337,0.28163,91758.0,91757.0,0.13629]
[1765378294645,0.58505016,91758.0,91741.0,0.07909]
[1765378294848,0.58505016,91758.0,91742.0,0.0109003]
[1765378294849,0.22194461,91751.0,91742.0,0.0109003]
[1765378295037,0.00010016,91758.0,91751.0,0.0108992]
[1765378295242,0.08027,91756.0,91740.0,0.27138004]
[1765378295435,0.00016349,91760.0,91740.0,0.27138004]
[1765378295436,0.001,91751.0,91750.0,0.2811894]
[1765378295641,0.001,91751.0,91750.0,0.27029]
[1765378295840,0.001,91751.0,91740.0,0.01509004]
[1765378296040,0.0108995,91749.0,91741.0,0.0109004]
[1765378296237,0.28163,91743.0,91742.0,0.012]
[1765378296650,0.40472,91744.0,91743.0,0.27029]
[1765378296850,0.54141,91744.0,91743.0,0.27029]
[1765378297052,0.68635,91744.0,91743.0,0.13629]
[1765378297646,0.14494,91744.0,91743.0,0.13629]
[1765378297848,0.00011819,91748.0,91747.0,0.27029]
[1765378298244,0.5037381,91760.0,91759.0,0.1471883]
[1765378298444,0.00016349,91760.0,91759.0,0.2811883]
[1765378299159,0.13695325,91760.0,91759.0,0.27029]
[1765378299347,0.28189325,91760.0,91759.0,0.13629]
[1765378299654,0.29879155,91760.0,91759.0,0.001]
[1765378300251,0.00626325,91760.0,91759.0,0.27129]
[1765378300455,1e-08,91760.0,91759.0,0.67129]
[1765378300951,0.3608,91783.0,91782.0,0.27029]
[1765378301157,0.3608,91783.0,91770.0,0.07909]
[1765378301158,0.28163,91779.0,91778.0,0.0108959]
[1765378301356,0.28163,91779.0,91773.0,0.0108965]
[1765378301546,0.28163,91779.0,91776.0,0.0108961]
[1765378301745,0.292526,91779.0,91771.0,0.0108968]
[1765378301954,0.0108964,91776.0,91771.0,0.0108968]
[1765378302254,0.28163,91779.0,91769.0,0.00016349]
[1765378302255,0.28163,91770.0,91769.0,0.00016349]
[1765378302457,0.3608,91772.0,91771.0,0.27029]
[1765378302658,0.3608,91781.0,91780.0,0.27029]
[1765378302849,0.007,91783.0,91782.0,0.27029]
[1765378303250,0.13669,91779.0,91778.0,0.010896]
[1765378303555,0.3786955,91783.0,91778.0,0.010896]
[1765378303556,0.3678,91783.0,91778.0,0.147186]
[1765378303759,0.007,91779.0,91778.0,0.147186]
[1765378304147,0.007,91779.0,91778.0,0.27029]
[1765378304356,0.007,91779.0,91772.0,0.3608]
[1765378304357,0.0108961,91778.0,91771.0,0.002]
[1765378304550,0.3608,91775.0,91774.0,0.27029]
[1765378305956,0.0108965,91774.0,91771.0,0.001]
[1765378306156,0.28163,91772.0,91771.0,0.001]
[1765378306853,0.13669,91770.0,91762.0,0.0108979]
[1765378307154,0.28163,91770.0,91762.0,0.0108979]
[1765378307358,0.28163,91770.0,91740.0,0.22303465]
[1765378307359,0.3619,91770.0,91758.0,0.0108983]
[1765378307759,0.3619,91770.0,91747.0,0.3608]
[1765378307760,0.7227,91770.0,91750.0,0.0108993]
[1765378308755,0.1475895,91749.0,91740.0,0.00109004]
[1765378308945,0.3608,91751.0,91750.0,0.2811894]
[1765378309150,0.3608,91751.0,91750.0,0.27029]
[1765378309344,0.3608,91751.0,91740.0,0.00109004]
[1765378309558,0.3608,91751.0,91741.0,0.0109004]
[1765378309559,0.28163,91742.0,91741.0,0.0109004]
[1765378309756,0.00016349,91751.0,91750.0,0.2811894]
[1765378310945,0.003,91770.0,91769.0,0.2811871]
[1765378311147,0.13669,91781.0,91780.0,0.0108957]
[1765378311346,0.7216,91781.0,91780.0,0.2811857]
[1765378311648,0.36047807,91800.0,91788.0,0.0108947]
[1765378311649,0.31108,91798.0,91788.0,0.0108947]
[1765378312051,0.3608,91789.0,91784.0,0.01105879]
[1765378312343,0.3608,91789.0,91760.0,0.28020807]
[1765378312344,0.28163,91757.0,91755.0,0.0108987]
[1765378312550,0.28163,91755.0,91754.0,0.0108988]
[1765378312865,0.28163,91751.0,91750.0,0.005]
[1765378313051,0.08027,91755.0,91742.0,0.0109003]
[1765378313358,0.3608,91747.0,91742.0,0.0109003]
[1765378313550,0.3608,91756.0,91755.0,0.27029]
[1765378315059,0.3608,91756.0,91755.0,0.14029]
[1765378315448,0.3618,91756.0,91755.0,0.14929]
[1765378316060,0.6549,91756.0,91755.0,0.013]
[1765378316764,0.3618,91756.0,91755.0,0.30424]
[1765378317066,0.001,91756.0,91755.0,0.30424]
[1765378317256,0.001,91756.0,91755.0,0.333897]
[1765378317854,0.001,91756.0,91755.0,0.3447958]
[1765378318265,0.001,91756.0,91755.0,0.1994658]
[1765378318460,0.28155,91756.0,91755.0,0.0535558]
[1765378318673,0.28155,91756.0,91755.0,0.013]
[1765378318674,0.64235,91756.0,91755.0,0.013]
[1765378320162,0.50272,91756.0,91755.0,0.013]
[1765378320363,0.50272,91756.0,91755.0,0.41429883]
[1765378320364,0.3618,91756.0,91755.0,0.41429883]
[1765378320869,0.001,91756.0,91755.0,0.41429883]
[1765378321055,0.3608,91774.0,91773.0,0.2943566]
[1765378321260,0.2914461,91778.0,91777.0,0.0108961]
[1765378321459,0.2914461,91778.0,91777.0,0.04014493]
[1765378321460,0.1518161,91778.0,91777.0,0.04014493]
[1765378321762,0.0108957,91782.0,91781.0,0.0108956]
[1765378321955,0.0108948,91788.0,91785.0,0.0108951]
[1765378322259,0.3716943,91793.0,91790.0,0.0108944]
[1765378322457,0.3716943,91793.0,91791.0,0.02924883]
[1765378322658,0.3716943,91793.0,91792.0,0.02924883]
[1765378322860,0.6522443,91793.0,91792.0,0.02924883]
[1765378323463,0.2914452,91785.0,91784.0,0.0390913]
[1765378323665,0.6522452,91785.0,91784.0,0.06843457]
[1765378323865,0.6522452,91785.0,91784.0,0.02934327]
[1765378324070,1.1632052,91785.0,91784.0,0.02934327]
[1765378325169,1.1692052,91785.0,91784.0,7e-08]
[1765378325471,1.1692052,91785.0,91740.0,0.36988811]
[1765378325472,0.2914472,91768.0,91766.0,0.0390913]
[1765378325667,0.2914475,91766.0,91765.0,0.0390913]
[1765378326071,0.28055,91765.0,91764.0,0.0390913]
[1765378326261,0.3750282,91760.0,91759.0,0.0390913]
[1765378326462,0.28055,91752.0,91751.0,0.05844871]
[1765378326658,0.28055,91751.0,91750.0,0.05844871]
[1765378326972,0.2914494,91750.0,91747.0,0.05844871]
[1765378327169,0.28055,91748.0,91747.0,0.05844871]
[1765378327362,0.0109003,91742.0,91740.0,0.00109004]
[1765378327568,0.64135,91741.0,91740.0,0.00109004]
[1765378329159,0.64135,91741.0,91740.0,0.00709004]
[1765378329362,0.291451,91736.0,91735.0,0.03910721]
[1765378329563,0.28055,91726.0,91725.0,0.03910721]
[1765378329766,0.87196,91726.0,91721.0,0.03910721]
[1765378329968,0.010902,91728.0,91726.0,0.0109021]
[1765378330269,0.50704,91728.0,91725.0,0.05000197]
[1765378330469,0.3608,91730.0,91729.0,0.28346]
[1765378330678,0.84824,91730.0,91729.0,0.28346]
[1765378331276,0.3608,91730.0,91729.0,0.28346]
[1765378331469,0.51116,91733.0,91732.0,0.28346]
[1765378331669,0.3608,91738.0,91735.0,0.28346]
[1765378331972,0.3608,91738.0,91733.0,0.0109014]
[1765378331973,0.3608,91750.0,91749.0,0.3829495]
[1765378332163,0.5114,91766.0,91760.0,0.28346]
[1765378332361,0.5114,91788.0,91760.0,0.03905452]
[1765378332576,0.28020807,91780.0,91768.0,0.03905452]
[1765378332774,0.5114,91788.0,91775.0,0.0108964]
[1765378332965,0.5114,91788.0,91766.0,0.08096]
[1765378332966,0.010896,91779.0,91778.0,0.14237]
[1765378333168,0.3608,91781.0,91778.0,0.14237]
[1765378333369,0.0108958,91780.0,91778.0,0.14237]
[1765378333563,0.3608,91781.0,91780.0,0.28875]
[1765378333969,0.00108945,91790.0,91780.0,0.28875]
[1765378334174,0.3608,91789.0,91781.0,0.03905452]
[1765378334364,0.0108948,91788.0,91785.0,0.0108951]
[1765378334564,0.0108952,91785.0,91781.0,0.0108956]
[1765378334976,0.2929657,91781.0,91780.0,0.03905452]
[1765378335179,0.0108961,91778.0,91777.0,0.03905452]
[1765378335568,0.2919661,91778.0,91777.0,0.03905452]
[1765378335772,0.2919661,91778.0,91772.0,0.05875141]
[1765378335773,0.2919666,91773.0,91772.0,0.00016349]
[1765378336582,0.8034066,91773.0,91772.0,0.00016349]
[1765378336779,0.2919666,91773.0,91772.0,0.00016349]
[1765378336985,0.2919666,91773.0,91772.0,0.29217349]
[1765378336986,0.008,91773.0,91772.0,0.29217349]
[1765378337172,0.008,91773.0,91766.0,0.03508923]
[1765378337173,0.28107,91767.0,91766.0,0.03508923]
[1765378337370,0.0108982,91761.0,91753.0,0.05858792]
[1765378337573,0.010898,91761.0,91757.0,0.0108985]
[1765378337886,0.0108979,91763.0,91760.0,0.0108981]
[1765378338086,0.0108981,91761.0,91757.0,0.0108985]
[1765378338383,0.0108981,91761.0,91759.0,0.0108982]
[1765378339474,0.0108991,91753.0,91751.0,0.05858792]
[1765378339769,0.3608,91764.0,91739.0,0.3608]
[1765378339770,0.0109005,91740.0,91739.0,0.3608]
[1765378339975,0.28107,91736.0,91735.0,0.05858792]
[1765378340174,0.1455711,91735.0,91733.0,0.05858792]
[1765378340394,0.0109015,91732.0,91731.0,0.06948952]
[1765378340584,0.3608,91739.0,91734.0,0.0109012]
[1765378340781,0.3608,91739.0,91731.0,0.05858792]
[1765378340782,0.3608,91739.0,91738.0,0.3019108]
[1765378340983,0.00016349,91749.0,91748.0,0.3019096]
[1765378342486,0.00216349,91749.0,91748.0,0.3019096]
[1765378342782,0.01116349,91749.0,91748.0,0.3029096]
[1765378343582,0.01116349,91749.0,91734.0,0.07815593]
[1765378343583,0.0109024,91724.0,91722.0,0.3608]
[1765378343881,0.0109024,91724.0,91717.0,0.01]
[1765378343882,0.0109016,91731.0,91728.0,0.08025]
[1765378344081,0.28020807,91732.0,91728.0,0.08025]
[1765378344082,0.0109018,91729.0,91728.0,0.08025]
[1765378344280,0.00016349,91739.0,91728.0,0.08025]
[1765378344480,0.0109013,91734.0,91733.0,0.29101]
[1765378344683,0.0109012,91735.0,91729.0,0.0109018]
[1765378344882,0.0109016,91732.0,91728.0,0.08025]
[1765378345092,0.3608,91729.0,91728.0,0.0911519]
[1765378345278,0.3668,91729.0,91728.0,0.08125]
[1765378345473,0.3668,91729.0,91728.0,0.37226]
[1765378345688,0.3668,91729.0,91728.0,0.37326]
[1765378346687,0.36004628,91729.0,91728.0,0.37326]
[1765378347085,0.35404628,91729.0,91728.0,0.37226]
[1765378347285,0.35404628,91729.0,91728.0,0.37126]
[1765378347487,0.35904628,91729.0,91728.0,0.37226]